[Event "Titled Tuesday Blitz March 08 Early 2022"]
[White "Karolczuk, Iwo"]
[Black "Bortnyk, Olexandr"]
[WhiteFideId "21816972"]
[BlackFideId "14120828"]
[WhiteElo "2243"]
[BlackElo "2723"]
[Result "0-1"]
[Round "08"]
[TimeControl "180+1"]
[Date "2022.03.08"]
[WhiteClock "0:00:01"]
[BlackClock "0:00:03"]

1. e4 {[%clk 0:02:59]}  Nf6 {[%clk 0:03:00]} 2. e5 {[%clk 0:02:58]}  Nd5 {[%clk 0:03:00]} 3. d4 {[%clk 0:02:58]}  d6 {[%clk 0:03:00]} 4. exd6 {[%clk 0:02:58]}  exd6 {[%clk 0:03:01]} 5. c4 {[%clk 0:02:58]}  Nb6 {[%clk 0:03:01]} 6. Nc3 {[%clk 0:02:59]}  Be7 {[%clk 0:03:02]} 7. Bd3 {[%clk 0:02:57]}  O-O {[%clk 0:03:02]} 8. Nge2 {[%clk 0:02:57]}  Na6 {[%clk 0:02:59]} 9. b3 {[%clk 0:02:56]}  c6 {[%clk 0:02:58]} 10. O-O {[%clk 0:02:48]}  d5 {[%clk 0:02:57]} 11. c5 {[%clk 0:02:46]}  Nd7 {[%clk 0:02:57]} 12. Bf4 {[%clk 0:02:39]}  Bf6 {[%clk 0:02:56]} 13. a3 {[%clk 0:02:35]}  Nc7 {[%clk 0:02:52]} 14. Qc2 {[%clk 0:02:29]}  g6 {[%clk 0:02:51]} 15. Rad1 {[%clk 0:02:24]}  Ne6 {[%clk 0:02:48]} 16. Be3 {[%clk 0:02:23]}  Bg7 {[%clk 0:02:49]} 17. f4 {[%clk 0:02:17]}  f5 {[%clk 0:02:49]} 18. b4 {[%clk 0:02:12]}  Nf6 {[%clk 0:02:40]} 19. Kh1 {[%clk 0:02:09]}  b5 {[%clk 0:02:28]} 20. a4 {[%clk 0:01:58]}  a6 {[%clk 0:02:27]} 21. Ra1 {[%clk 0:01:52]}  Bd7 {[%clk 0:02:25]} 22. Bg1 {[%clk 0:01:45]}  Re8 {[%clk 0:02:22]} 23. h3 {[%clk 0:01:37]}  Ne4 {[%clk 0:02:21]} 24. Bxe4 {[%clk 0:01:35]}  dxe4 {[%clk 0:02:17]} 25. axb5 {[%clk 0:01:30]}  axb5 {[%clk 0:02:18]} 26. Rxa8 {[%clk 0:01:29]}  Qxa8 {[%clk 0:02:19]} 27. Qb3 {[%clk 0:01:26]}  Kh8 {[%clk 0:02:10]} 28. d5 {[%clk 0:01:26]}  cxd5 {[%clk 0:01:57]} 29. Nxd5 {[%clk 0:01:26]}  Bc6 {[%clk 0:01:52]} 30. Nb6 {[%clk 0:01:26]}  Qb7 {[%clk 0:01:52]} 31. Be3 {[%clk 0:01:26]}  Qe7 {[%clk 0:01:01]} 32. Rd1 {[%clk 0:01:22]}  Rd8 {[%clk 0:01:02]} 33. Rxd8+ {[%clk 0:01:16]}  Nxd8 {[%clk 0:01:03]} 34. Nd4 {[%clk 0:01:16]}  Be8 {[%clk 0:01:00]} 35. Qd5 {[%clk 0:01:11]}  h5 {[%clk 0:00:52]} 36. Nc8 {[%clk 0:00:47]}  Qd7 {[%clk 0:00:52]} 37. Nd6 {[%clk 0:00:38]}  Kh7 {[%clk 0:00:45]} 38. N4xb5 {[%clk 0:00:34]}  Bf7 {[%clk 0:00:37]} 39. Qd2 {[%clk 0:00:33]}  Bg8 {[%clk 0:00:21]} 40. Nc3 {[%clk 0:00:25]}  Nc6 {[%clk 0:00:16]} 41. b5 {[%clk 0:00:25]}  Na5 {[%clk 0:00:11]} 42. b6 {[%clk 0:00:15]}  Nb3 {[%clk 0:00:05]} 43. Qc2 {[%clk 0:00:15]}  Na5 {[%clk 0:00:02]} 44. Ncb5 {[%clk 0:00:14]}  Nc6 {[%clk 0:00:02]} 45. b7 {[%clk 0:00:08]}  Nb8 {[%clk 0:00:02]} 46. Qa4 {[%clk 0:00:07]}  Bd5 {[%clk 0:00:02]} 47. Qa8 {[%clk 0:00:07]}  Qd8 {[%clk 0:00:02]} 48. Qa7 {[%clk 0:00:06]}  Nd7 {[%clk 0:00:01]} 49. Nd4 {[%clk 0:00:04]}  Qc7 {[%clk 0:00:01]} 50. N6b5 {[%clk 0:00:04]}  Qxb7 {[%clk 0:00:01]} 51. Qxb7 {[%clk 0:00:04]}  Bxb7 {[%clk 0:00:02]} 52. c6 {[%clk 0:00:04]}  Bc8 {[%clk 0:00:03]} 53. cxd7 {[%clk 0:00:05]}  Bxd7 {[%clk 0:00:04]} 54. Nd6 {[%clk 0:00:05]}  Bf8 {[%clk 0:00:04]} 55. Nf7 {[%clk 0:00:05]}  Kg7 {[%clk 0:00:04]} 56. Ne5 {[%clk 0:00:06]}  Bc8 {[%clk 0:00:05]} 57. Ne2 {[%clk 0:00:06]}  Bd6 {[%clk 0:00:05]} 58. Bd4 {[%clk 0:00:06]}  Kh7 {[%clk 0:00:05]} 59. Nc3 {[%clk 0:00:06]}  Bb7 {[%clk 0:00:05]} 60. Nb5 {[%clk 0:00:07]}  Bb4 {[%clk 0:00:04]} 61. Nc7 {[%clk 0:00:06]}  Bc8 {[%clk 0:00:03]} 62. Nd5 {[%clk 0:00:06]}  Bd2 {[%clk 0:00:02]} 63. g3 {[%clk 0:00:05]}  Bb7 {[%clk 0:00:02]} 64. Ne3 {[%clk 0:00:05]}  Bb4 {[%clk 0:00:02]} 65. Kg1 {[%clk 0:00:05]}  Be1 {[%clk 0:00:02]} 66. Kg2 {[%clk 0:00:05]}  h4 {[%clk 0:00:03]} 67. g4 {[%clk 0:00:04]}  Bg3 {[%clk 0:00:02]} 68. gxf5 {[%clk 0:00:04]}  gxf5 {[%clk 0:00:03]} 69. Nxf5 {[%clk 0:00:05]}  e3+ {[%clk 0:00:04]} 70. Kf1 {[%clk 0:00:05]}  Ba6+ {[%clk 0:00:04]} 71. Kg2 {[%clk 0:00:05]}  Bb7+ {[%clk 0:00:04]} 72. Nf3 {[%clk 0:00:04]}  e2 {[%clk 0:00:04]} 73. Bc3 {[%clk 0:00:03]}  e1=Q {[%clk 0:00:05]} 74. Bxe1 {[%clk 0:00:03]}  Bxe1 {[%clk 0:00:05]} 75. Nd4 {[%clk 0:00:03]}  Bg3 {[%clk 0:00:05]} 76. Nf5 {[%clk 0:00:02]}  Be1 {[%clk 0:00:04]} 77. Nd4 {[%clk 0:00:02]}  Kg6 {[%clk 0:00:03]} 78. f5+ {[%clk 0:00:02]}  Kf6 {[%clk 0:00:03]} 79. Kf1 {[%clk 0:00:03]}  Bg3 {[%clk 0:00:04]} 80. Ke2 {[%clk 0:00:03]}  Bf4 {[%clk 0:00:03]} 81. Kf2 {[%clk 0:00:03]}  Bg3+ {[%clk 0:00:02]} 82. Ke2 {[%clk 0:00:03]}  Bd5 {[%clk 0:00:02]} 83. Ke3 {[%clk 0:00:04]}  Bc4 {[%clk 0:00:03]} 84. Ke4 {[%clk 0:00:04]}  Bf1 {[%clk 0:00:03]} 85. Ke3 {[%clk 0:00:03]}  Bxh3 {[%clk 0:00:03]} 86. Ne2 {[%clk 0:00:03]}  Bd6 {[%clk 0:00:02]} 87. Nf4 {[%clk 0:00:03]}  Bg4 {[%clk 0:00:03]} 88. Nxh4 {[%clk 0:00:03]}  Kg5 {[%clk 0:00:03]} 89. Nhg2 {[%clk 0:00:03]}  Kxf5 {[%clk 0:00:03]} 90. Nh4+ {[%clk 0:00:03]}  Kg5 {[%clk 0:00:03]} 91. Nhg2 {[%clk 0:00:04]}  Bc5+ {[%clk 0:00:04]} 92. Ke4 {[%clk 0:00:04]}  Ba7 {[%clk 0:00:04]} 93. Kd3 {[%clk 0:00:04]}  Bf5+ {[%clk 0:00:03]} 94. Ke2 {[%clk 0:00:04]}  Be4 {[%clk 0:00:03]} 95. Kd2 {[%clk 0:00:03]}  Kg4 {[%clk 0:00:03]} 96. Ke2 {[%clk 0:00:04]}  Bf3+ {[%clk 0:00:03]} 97. Kd3 {[%clk 0:00:04]}  Bb7 {[%clk 0:00:04]} 98. Kd2 {[%clk 0:00:04]}  Kf3 {[%clk 0:00:04]} 99. Kd3 {[%clk 0:00:04]}  Ba6+ {[%clk 0:00:05]} 100. Kd2 {[%clk 0:00:04]}  Bb6 {[%clk 0:00:05]} 101. Kc3 {[%clk 0:00:05]}  Bc5 {[%clk 0:00:05]} 102. Kd2 {[%clk 0:00:05]}  Bb4+ {[%clk 0:00:05]} 103. Kc2 {[%clk 0:00:05]}  Bc4 {[%clk 0:00:06]} 104. Kb2 {[%clk 0:00:06]}  Bf7 {[%clk 0:00:05]} 105. Kc2 {[%clk 0:00:06]}  Ke4 {[%clk 0:00:05]} 106. Ne2 {[%clk 0:00:05]}  Bg6 {[%clk 0:00:04]} 107. Ngf4 {[%clk 0:00:05]}  Bh7 {[%clk 0:00:04]} 108. Kb3 {[%clk 0:00:05]}  Bd6 {[%clk 0:00:04]} 109. Ng2 {[%clk 0:00:05]}  Kd3 {[%clk 0:00:03]} 110. Nef4+ {[%clk 0:00:05]}  Kd4 {[%clk 0:00:03]} 111. Ne6+ {[%clk 0:00:05]}  Kd5 {[%clk 0:00:03]} 112. Nef4+ {[%clk 0:00:05]}  Ke4 {[%clk 0:00:03]} 113. Ne2 {[%clk 0:00:05]}  Bg8+ {[%clk 0:00:03]} 114. Kc2 {[%clk 0:00:04]}  Bb4 {[%clk 0:00:03]} 115. Nc3+ {[%clk 0:00:04]}  Kf3 {[%clk 0:00:04]} 116. Ne1+ {[%clk 0:00:04]}  Ke3 {[%clk 0:00:04]} 117. Nd3 {[%clk 0:00:05]}  Bh7 {[%clk 0:00:04]} 118. Kb3 {[%clk 0:00:05]}  Bd6 {[%clk 0:00:03]} 119. Nb2 {[%clk 0:00:05]}  Bg8+ {[%clk 0:00:03]} 120. Kc2 {[%clk 0:00:05]}  Bc7 {[%clk 0:00:02]} 121. Nc4+ {[%clk 0:00:05]}  Bxc4 {[%clk 0:00:02]} 122. Nd1+ {[%clk 0:00:05]}  Kd4 {[%clk 0:00:02]} 123. Nb2 {[%clk 0:00:05]}  Bd5 {[%clk 0:00:02]} 124. Nd1 {[%clk 0:00:05]}  Ba5 {[%clk 0:00:02]} 125. Nb2 {[%clk 0:00:05]}  Be4+ {[%clk 0:00:02]} 126. Kb3 {[%clk 0:00:05]}  Bc3 {[%clk 0:00:02]} 127. Na4 {[%clk 0:00:06]}  Bd5+ {[%clk 0:00:02]} 128. Kc2 {[%clk 0:00:06]}  Be1 {[%clk 0:00:03]} 129. Nb2 {[%clk 0:00:06]}  Bh4 {[%clk 0:00:03]} 130. Kd2 {[%clk 0:00:05]}  Be4 {[%clk 0:00:03]} 131. Na4 {[%clk 0:00:04]}  Bd3 {[%clk 0:00:03]} 132. Nb2 {[%clk 0:00:04]}  Bg5+ {[%clk 0:00:03]} 133. Ke1 {[%clk 0:00:04]}  Bb5 {[%clk 0:00:03]} 134. Kf2 {[%clk 0:00:03]}  Bd2 {[%clk 0:00:02]} 135. Nd1 {[%clk 0:00:03]}  Kd3 {[%clk 0:00:03]} 136. Kf3 {[%clk 0:00:03]}  Bc6+ {[%clk 0:00:03]} 137. Kg3 {[%clk 0:00:03]}  Ke2 {[%clk 0:00:03]} 138. Nf2 {[%clk 0:00:03]}  Be1 {[%clk 0:00:03]} 139. Kh2 {[%clk 0:00:01]}  Bxf2 {[%clk 0:00:03]} 0-1


[Site "https://www.chess.com"]

[Event "Titled Tuesday Blitz March 08 Early 2022"]
[White "Kim, Sergey"]
[Black "Nasuta, Grzegorz"]
[WhiteFideId "13700570"]
[BlackFideId "1141686"]
[WhiteElo "2549"]
[BlackElo "2396"]
[Result "0-1"]
[Round "08"]
[TimeControl "180+1"]
[Date "2022.03.09"]
[WhiteClock "0:00:35"]
[BlackClock "0:00:07"]

1. d4 {[%clk 0:02:55]}  Nf6 {[%clk 0:02:59]} 2. c4 {[%clk 0:02:55]}  g6 {[%clk 0:02:57]} 3. Nc3 {[%clk 0:02:55]}  d5 {[%clk 0:02:57]} 4. cxd5 {[%clk 0:02:55]}  Nxd5 {[%clk 0:02:58]} 5. e4 {[%clk 0:02:55]}  Nxc3 {[%clk 0:02:54]} 6. bxc3 {[%clk 0:02:56]}  Bg7 {[%clk 0:02:54]} 7. Bc4 {[%clk 0:02:55]}  c5 {[%clk 0:02:54]} 8. Ne2 {[%clk 0:02:55]}  Nc6 {[%clk 0:02:55]} 9. Be3 {[%clk 0:02:54]}  O-O {[%clk 0:02:55]} 10. O-O {[%clk 0:02:54]}  Qc7 {[%clk 0:02:56]} 11. Rc1 {[%clk 0:02:54]}  Rd8 {[%clk 0:02:56]} 12. Qd2 {[%clk 0:02:54]}  b6 {[%clk 0:02:49]} 13. Bh6 {[%clk 0:02:51]}  Bb7 {[%clk 0:02:39]} 14. Bxg7 {[%clk 0:02:50]}  Kxg7 {[%clk 0:02:40]} 15. f4 {[%clk 0:02:48]}  Qd7 {[%clk 0:01:49]} 16. f5 {[%clk 0:02:31]}  cxd4 {[%clk 0:01:35]} 17. fxg6 {[%clk 0:02:30]}  Ne5 {[%clk 0:01:35]} 18. cxd4 {[%clk 0:02:25]}  Nxc4 {[%clk 0:01:32]} 19. Rxc4 {[%clk 0:01:57]}  hxg6 {[%clk 0:01:31]} 20. d5 {[%clk 0:01:55]}  Rac8 {[%clk 0:01:24]} 21. Rxc8 {[%clk 0:01:51]}  Rxc8 {[%clk 0:01:24]} 22. Qf4 {[%clk 0:01:50]}  e6 {[%clk 0:01:08]} 23. d6 {[%clk 0:01:33]}  f5 {[%clk 0:00:27]} 24. exf5 {[%clk 0:01:13]}  exf5 {[%clk 0:00:26]} 25. Nd4 {[%clk 0:01:06]}  Rc5 {[%clk 0:00:22]} 26. Qg5 {[%clk 0:00:55]}  Kf7 {[%clk 0:00:14]} 27. Qf4 {[%clk 0:00:41]}  Rd5 {[%clk 0:00:14]} 28. Nf3 {[%clk 0:00:41]}  Qxd6 {[%clk 0:00:13]} 29. Qh6 {[%clk 0:00:40]}  Rd1 {[%clk 0:00:07]} 30. Qh7+ {[%clk 0:00:37]}  Ke8 {[%clk 0:00:07]} 31. Qxb7 {[%clk 0:00:35]}  Qc5+ {[%clk 0:00:07]} 0-1


[Site "https://www.chess.com"]

[Event "Titled Tuesday Blitz March 08 Early 2022"]
[White "Kirillov, Dmitry"]
[Black "Spata, German"]
[WhiteFideId "34180572"]
[BlackFideId "113026"]
[WhiteElo "2076"]
[BlackElo "2238"]
[Result "1-0"]
[Round "08"]
[TimeControl "180+1"]
[Date "2022.03.09"]
[WhiteClock "0:00:04"]
[BlackClock "0:00:02"]

1. d4 {[%clk 0:03:00]}  e6 {[%clk 0:02:58]} 2. c4 {[%clk 0:03:00]}  Nf6 {[%clk 0:02:58]} 3. Nf3 {[%clk 0:03:00]}  d5 {[%clk 0:02:58]} 4. e3 {[%clk 0:02:59]}  Be7 {[%clk 0:02:58]} 5. b3 {[%clk 0:03:00]}  O-O {[%clk 0:02:58]} 6. Bd3 {[%clk 0:03:00]}  b6 {[%clk 0:02:59]} 7. O-O {[%clk 0:03:00]}  Bb7 {[%clk 0:02:59]} 8. Bb2 {[%clk 0:03:01]}  dxc4 {[%clk 0:02:59]} 9. bxc4 {[%clk 0:02:56]}  c5 {[%clk 0:02:58]} 10. Nc3 {[%clk 0:02:56]}  cxd4 {[%clk 0:02:57]} 11. exd4 {[%clk 0:02:57]}  Nc6 {[%clk 0:02:57]} 12. Re1 {[%clk 0:02:52]}  Rc8 {[%clk 0:02:53]} 13. d5 {[%clk 0:02:44]}  exd5 {[%clk 0:02:53]} 14. Nxd5 {[%clk 0:02:28]}  Nxd5 {[%clk 0:02:51]} 15. cxd5 {[%clk 0:02:29]}  Nb4 {[%clk 0:02:49]} 16. Bf5 {[%clk 0:02:27]}  Rc5 {[%clk 0:02:41]} 17. Qd4 {[%clk 0:02:20]}  Bf6 {[%clk 0:02:17]} 18. Qxb4 {[%clk 0:02:19]}  a5 {[%clk 0:02:07]} 19. Bxf6 {[%clk 0:02:09]}  Qxf6 {[%clk 0:02:07]} 20. Qg4 {[%clk 0:01:39]}  Bxd5 {[%clk 0:01:56]} 21. Be4 {[%clk 0:01:35]}  Be6 {[%clk 0:01:55]} 22. Qh4 {[%clk 0:01:28]}  Qxh4 {[%clk 0:01:50]} 23. Nxh4 {[%clk 0:01:29]}  g6 {[%clk 0:01:45]} 24. Nf3 {[%clk 0:01:26]}  Rd8 {[%clk 0:01:35]} 25. a3 {[%clk 0:01:18]}  Rc3 {[%clk 0:01:35]} 26. h3 {[%clk 0:01:06]}  b5 {[%clk 0:01:35]} 27. Rec1 {[%clk 0:01:02]}  Rdc8 {[%clk 0:01:25]} 28. Rxc3 {[%clk 0:00:58]}  Rxc3 {[%clk 0:01:26]} 29. Nd4 {[%clk 0:00:54]}  Bd7 {[%clk 0:01:26]} 30. Ne2 {[%clk 0:00:47]}  Rb3 {[%clk 0:00:58]} 31. Bd5 {[%clk 0:00:46]}  Rd3 {[%clk 0:00:57]} 32. Be4 {[%clk 0:00:41]}  Rb3 {[%clk 0:00:56]} 33. Nc1 {[%clk 0:00:37]}  Rc3 {[%clk 0:00:52]} 34. Nd3 {[%clk 0:00:30]}  Kg7 {[%clk 0:00:43]} 35. Ne5 {[%clk 0:00:27]}  Be6 {[%clk 0:00:37]} 36. Nc6 {[%clk 0:00:19]}  a4 {[%clk 0:00:29]} 37. Nd4 {[%clk 0:00:18]}  Bd7 {[%clk 0:00:22]} 38. Bc2 {[%clk 0:00:09]}  Rc4 {[%clk 0:00:19]} 39. Rd1 {[%clk 0:00:08]}  Rc3 {[%clk 0:00:19]} 40. Rd3 {[%clk 0:00:08]}  Rc4 {[%clk 0:00:18]} 41. Kf1 {[%clk 0:00:07]}  Be8 {[%clk 0:00:15]} 42. Ke2 {[%clk 0:00:07]}  b4 {[%clk 0:00:15]} 43. axb4 {[%clk 0:00:06]}  Rxb4 {[%clk 0:00:16]} 44. Kd2 {[%clk 0:00:06]}  a3 {[%clk 0:00:14]} 45. Bb3 {[%clk 0:00:03]}  Ba4 {[%clk 0:00:08]} 46. Bxa4 {[%clk 0:00:02]}  Rxa4 {[%clk 0:00:09]} 47. Nc2 {[%clk 0:00:02]}  a2 {[%clk 0:00:09]} 48. Na1 {[%clk 0:00:03]}  Rb4 {[%clk 0:00:07]} 49. Ra3 {[%clk 0:00:02]}  Rb2+ {[%clk 0:00:07]} 50. Ke3 {[%clk 0:00:02]}  h5 {[%clk 0:00:06]} 51. h4 {[%clk 0:00:02]}  Kh7 {[%clk 0:00:06]} 52. g3 {[%clk 0:00:02]}  Kg7 {[%clk 0:00:06]} 53. Ra7 {[%clk 0:00:02]}  Kf6 {[%clk 0:00:05]} 54. Ra5 {[%clk 0:00:03]}  Kg7 {[%clk 0:00:05]} 55. f3 {[%clk 0:00:03]}  Rg2 {[%clk 0:00:04]} 56. Kf4 {[%clk 0:00:04]}  Rb2 {[%clk 0:00:04]} 57. g4 {[%clk 0:00:03]}  hxg4 {[%clk 0:00:04]} 58. fxg4 {[%clk 0:00:03]}  Rb4+ {[%clk 0:00:04]} 59. Kf3 {[%clk 0:00:03]}  Rb2 {[%clk 0:00:04]} 60. Kf4 {[%clk 0:00:02]}  Rb4+ {[%clk 0:00:04]} 61. Kg3 {[%clk 0:00:03]}  Rb2 {[%clk 0:00:04]} 62. h5 {[%clk 0:00:03]}  gxh5 {[%clk 0:00:04]} 63. gxh5 {[%clk 0:00:04]}  Rd2 {[%clk 0:00:04]} 64. Kg4 {[%clk 0:00:03]}  Rd4+ {[%clk 0:00:03]} 65. Kg5 {[%clk 0:00:03]}  Rd2 {[%clk 0:00:04]} 66. Nb3 {[%clk 0:00:03]}  Rb2 {[%clk 0:00:03]} 67. Nd4 {[%clk 0:00:03]}  Rb4 {[%clk 0:00:02]} 68. Nf5+ {[%clk 0:00:03]}  Kh7 {[%clk 0:00:02]} 69. Rxa2 {[%clk 0:00:03]}  Rb5 {[%clk 0:00:03]} 70. Ra7 {[%clk 0:00:03]}  Kg8 {[%clk 0:00:03]} 71. h6 {[%clk 0:00:02]}  Rb6 {[%clk 0:00:02]} 72. Ra8+ {[%clk 0:00:02]}  Kh7 {[%clk 0:00:02]} 73. Rf8 {[%clk 0:00:02]}  Rg6+ {[%clk 0:00:02]} 74. Kh5 {[%clk 0:00:02]}  Rf6 {[%clk 0:00:02]} 75. Kg5 {[%clk 0:00:02]}  Rg6+ {[%clk 0:00:03]} 76. Kf4 {[%clk 0:00:03]}  Rf6 {[%clk 0:00:03]} 77. Re8 {[%clk 0:00:03]}  Kg6 {[%clk 0:00:03]} 78. Rg8+ {[%clk 0:00:03]}  Kh7 {[%clk 0:00:03]} 79. Rg7+ {[%clk 0:00:04]}  Kh8 {[%clk 0:00:03]} 80. Kg5 {[%clk 0:00:04]}  Ra6 {[%clk 0:00:02]} 81. Rxf7 {[%clk 0:00:04]}  Rxh6 {[%clk 0:00:01]} 82. Kxh6 {[%clk 0:00:04]}  Kg8 {[%clk 0:00:01]} 83. Rg7+ {[%clk 0:00:04]}  Kh8 {[%clk 0:00:02]} 84. Ra7 {[%clk 0:00:04]}  Kg8 {[%clk 0:00:03]} 85. Kg6 {[%clk 0:00:04]}  Kf8 {[%clk 0:00:02]} 86. Ra8# {[%clk 0:00:04]} 1-0


[Site "https://www.chess.com"]

[Event "Titled Tuesday Blitz March 08 Early 2022"]
[White "Kohler, Aran"]
[Black "Hryshchenko, Kamila"]
[WhiteFideId "1002856"]
[BlackFideId "14147491"]
[WhiteElo "2271"]
[BlackElo "1929"]
[Result "1-0"]
[Round "08"]
[TimeControl "180+1"]
[Date "2022.03.09"]
[WhiteClock "0:01:09"]
[BlackClock "0:01:24"]

1. e4 {[%clk 0:03:00]}  d5 {[%clk 0:02:56]} 2. Nc3 {[%clk 0:02:57]}  dxe4 {[%clk 0:02:55]} 3. Nxe4 {[%clk 0:02:57]}  Qd5 {[%clk 0:02:55]} 4. Ng3 {[%clk 0:02:52]}  h5 {[%clk 0:02:53]} 5. h4 {[%clk 0:02:41]}  Nc6 {[%clk 0:02:49]} 6. Qf3 {[%clk 0:02:34]}  Qd6 {[%clk 0:02:46]} 7. Qd3 {[%clk 0:02:11]}  Qe5+ {[%clk 0:02:38]} 8. Be2 {[%clk 0:02:09]}  Bg4 {[%clk 0:02:35]} 9. Nf3 {[%clk 0:02:09]}  Bxf3 {[%clk 0:02:29]} 10. Qxf3 {[%clk 0:02:04]}  O-O-O {[%clk 0:02:28]} 11. c3 {[%clk 0:02:00]}  Nf6 {[%clk 0:02:23]} 12. d4 {[%clk 0:01:59]}  Qa5 {[%clk 0:02:18]} 13. O-O {[%clk 0:01:52]}  e5 {[%clk 0:02:16]} 14. dxe5 {[%clk 0:01:46]}  Nxe5 {[%clk 0:02:13]} 15. Qf5+ {[%clk 0:01:44]}  Kb8 {[%clk 0:02:12]} 16. b4 {[%clk 0:01:39]}  Qd5 {[%clk 0:02:11]} 17. Rd1 {[%clk 0:01:35]}  Qxd1+ {[%clk 0:02:10]} 18. Bxd1 {[%clk 0:01:34]}  Rxd1+ {[%clk 0:02:11]} 19. Nf1 {[%clk 0:01:32]}  Bd6 {[%clk 0:02:02]} 20. Bb2 {[%clk 0:01:29]}  Rxa1 {[%clk 0:01:41]} 21. Bxa1 {[%clk 0:01:29]}  Re8 {[%clk 0:01:35]} 22. c4 {[%clk 0:01:11]}  Nxc4 {[%clk 0:01:31]} 23. Bxf6 {[%clk 0:01:10]}  gxf6 {[%clk 0:01:29]} 24. Qxf6 {[%clk 0:01:10]}  Re1 {[%clk 0:01:24]} 25. Qd8# {[%clk 0:01:09]} 1-0


[Site "https://www.chess.com"]

[Event "Titled Tuesday Blitz March 08 Early 2022"]
[White "Kollars, Dmitrij"]
[Black "Durarbayli, Vasif"]
[WhiteFideId "12909572"]
[BlackFideId "13402935"]
[WhiteElo "2584"]
[BlackElo "2528"]
[Result "1-0"]
[Round "08"]
[TimeControl "180+1"]
[Date "2022.03.08"]
[WhiteClock "0:01:02"]
[BlackClock "0:00:02"]

1. d4 {[%clk 0:03:00]}  d5 {[%clk 0:02:57]} 2. c3 {[%clk 0:03:00]}  c6 {[%clk 0:02:56]} 3. Nf3 {[%clk 0:02:56]}  Bf5 {[%clk 0:02:55]} 4. Qb3 {[%clk 0:02:55]}  Qb6 {[%clk 0:02:55]} 5. Bf4 {[%clk 0:02:53]}  e6 {[%clk 0:02:52]} 6. Nh4 {[%clk 0:02:50]}  Be4 {[%clk 0:02:46]} 7. Nd2 {[%clk 0:02:50]}  h6 {[%clk 0:02:28]} 8. Nxe4 {[%clk 0:02:41]}  dxe4 {[%clk 0:02:27]} 9. g3 {[%clk 0:02:41]}  Nd7 {[%clk 0:02:10]} 10. Ng2 {[%clk 0:02:41]}  g5 {[%clk 0:02:07]} 11. Bd2 {[%clk 0:02:38]}  c5 {[%clk 0:02:06]} 12. h4 {[%clk 0:02:33]}  Qxb3 {[%clk 0:01:49]} 13. axb3 {[%clk 0:02:32]}  cxd4 {[%clk 0:01:50]} 14. cxd4 {[%clk 0:02:33]}  Bg7 {[%clk 0:01:50]} 15. hxg5 {[%clk 0:02:17]}  hxg5 {[%clk 0:01:35]} 16. Rxh8 {[%clk 0:02:18]}  Bxh8 {[%clk 0:01:36]} 17. Bxg5 {[%clk 0:02:17]}  Bxd4 {[%clk 0:01:35]} 18. O-O-O {[%clk 0:01:57]}  Bxf2 {[%clk 0:01:21]} 19. e3 {[%clk 0:01:47]}  f6 {[%clk 0:01:17]} 20. Bh4 {[%clk 0:01:27]}  Ne5 {[%clk 0:00:57]} 21. Be2 {[%clk 0:01:11]}  Rc8+ {[%clk 0:00:34]} 22. Kb1 {[%clk 0:01:11]}  Rd8 {[%clk 0:00:34]} 23. Rf1 {[%clk 0:01:09]}  Rd2 {[%clk 0:00:20]} 24. Rxf2 {[%clk 0:01:08]}  Ke7 {[%clk 0:00:15]} 25. Kc1 {[%clk 0:01:08]}  Rd8 {[%clk 0:00:07]} 26. Nf4 {[%clk 0:01:08]}  Rc8+ {[%clk 0:00:05]} 27. Kb1 {[%clk 0:01:08]}  Kd6 {[%clk 0:00:04]} 28. g4 {[%clk 0:01:03]}  Nf7 {[%clk 0:00:02]} 29. Nh5 {[%clk 0:01:02]} 1-0


[Site "https://www.chess.com"]

[Event "Titled Tuesday Blitz March 08 Early 2022"]
[White "Krysa, Leandro"]
[Black "Musovic, Armin"]
[WhiteFideId "116807"]
[BlackFideId "939935"]
[WhiteElo "2490"]
[BlackElo "2283"]
[Result "1-0"]
[Round "08"]
[TimeControl "180+1"]
[Date "2022.03.09"]
[WhiteClock "0:00:39"]
[BlackClock "0:01:07"]

1. e4 {[%clk 0:02:55]}  c6 {[%clk 0:03:00]} 2. d4 {[%clk 0:02:54]}  d5 {[%clk 0:03:01]} 3. e5 {[%clk 0:02:54]}  c5 {[%clk 0:03:01]} 4. dxc5 {[%clk 0:02:54]}  Nc6 {[%clk 0:03:01]} 5. Nf3 {[%clk 0:02:46]}  Bg4 {[%clk 0:03:01]} 6. Bb5 {[%clk 0:02:42]}  e6 {[%clk 0:02:59]} 7. b4 {[%clk 0:02:40]}  Bxf3 {[%clk 0:02:59]} 8. Qxf3 {[%clk 0:02:38]}  Ne7 {[%clk 0:02:59]} 9. O-O {[%clk 0:02:32]}  Qc7 {[%clk 0:02:57]} 10. Re1 {[%clk 0:02:27]}  Ng6 {[%clk 0:02:55]} 11. Qg3 {[%clk 0:02:21]}  Be7 {[%clk 0:02:54]} 12. a3 {[%clk 0:02:17]}  O-O {[%clk 0:02:54]} 13. Bxc6 {[%clk 0:02:10]}  Qxc6 {[%clk 0:02:49]} 14. Bb2 {[%clk 0:02:05]}  Rfc8 {[%clk 0:02:41]} 15. c4 {[%clk 0:01:50]}  dxc4 {[%clk 0:02:24]} 16. Nd2 {[%clk 0:01:50]}  b5 {[%clk 0:02:18]} 17. Ne4 {[%clk 0:01:49]}  a5 {[%clk 0:02:17]} 18. Nd6 {[%clk 0:01:49]}  axb4 {[%clk 0:02:10]} 19. Nxc8 {[%clk 0:01:41]}  Rxc8 {[%clk 0:02:09]} 20. axb4 {[%clk 0:01:41]}  h5 {[%clk 0:02:06]} 21. Red1 {[%clk 0:01:39]}  Qe4 {[%clk 0:02:05]} 22. Qe3 {[%clk 0:01:33]}  Qc2 {[%clk 0:02:04]} 23. Rd2 {[%clk 0:01:31]}  Qf5 {[%clk 0:02:04]} 24. Qf3 {[%clk 0:01:23]}  Qxf3 {[%clk 0:01:56]} 25. gxf3 {[%clk 0:01:23]}  Nh4 {[%clk 0:01:57]} 26. Rd7 {[%clk 0:01:23]}  Nxf3+ {[%clk 0:01:56]} 27. Kg2 {[%clk 0:01:23]}  Nh4+ {[%clk 0:01:57]} 28. Kh3 {[%clk 0:01:20]}  Nf5 {[%clk 0:01:57]} 29. Raa7 {[%clk 0:01:19]}  Kf8 {[%clk 0:01:52]} 30. c6 {[%clk 0:01:07]}  g5 {[%clk 0:01:52]} 31. c7 {[%clk 0:01:03]}  Ke8 {[%clk 0:01:48]} 32. Rd1 {[%clk 0:00:57]}  Bxb4 {[%clk 0:01:47]} 33. Rb7 {[%clk 0:00:54]}  c3 {[%clk 0:01:35]} 34. Rb8 {[%clk 0:00:49]}  g4+ {[%clk 0:01:17]} 35. Kg2 {[%clk 0:00:49]}  Nd6 {[%clk 0:01:08]} 36. exd6 {[%clk 0:00:39]}  Kd7 {[%clk 0:01:07]} 37. Rxc8 {[%clk 0:00:39]} 1-0


[Site "https://www.chess.com"]